Workbook

Sheet Intro
B1: Cow-Calf Budget
B2: Version 1.0 2024
B4: Andrew P. Griffith
B5: Professor
B6: Office: (931) 486-2129 Email: agriff14@utk.edu
B8: Becky Bowling
B9: Extension Specialist I
B10: Office: (865) 974-7016 Email: bowling10@utk.edu
B33: The University of Tennessee is an EEO/AA/Title VI/Title IX/Section 504/ADA/ADEA institution in the provision of its education and employment programs and services. All qualified applicants will receive equal consideration for employment and admission without regard to race, color, national origin, religion, sex, pregnancy, marital status, sexual orientation, gender identity, age, physical or mental disability, genetic information, veteran status, and parental status.

Sheet Budget
A1: Estimated Returns and Expenses for Beef Cow-Calf Operation in Tennessee
A2: Revenue1
B3: Item | C3: Unit | D3: Quantity | E3: Price | F3: $/Cow | G3: Herd Total $
B4: Cull Cows | C4: lb | D4: 1200 | E4: 1 | F4: =D4*E4*'Herd Data'!C9 -> 192 | G4: =F4*'Herd Data'!$C$8 -> 9600
B5: Heifer Calves | C5: lb | D5: 520 | E5: 2.25 | F5: =D5*E5*'Herd Data'!C16 -> 304.2 | G5: =F5*'Herd Data'!$C$8 -> 15210
B6: Steer Calves | C6: lb | D6: 550 | E6: 2.45 | F6: =D6*E6*'Herd Data'!C17 -> 592.9 | G6: =F6*'Herd Data'!$C$8 -> 29645
D7: Total Revenue | F7: =SUM(F4:F6) -> 1089.1 | G7: =SUM(G4:G6) -> 54455
A9: Variable Expenses
B10: Pasture Production | C10: acre | D10: 2 | E10: ='Pasture&Hay'!E16 -> 143.87 | F10: =D10*E10 -> 287.74 | G10: =F10*'Herd Data'!$C$8 -> 14387
B11: Hay Production | C11: acre | D11: 0.9 | E11: ='Pasture&Hay'!E37 -> 222.87 | F11: =D11*E11 -> 200.583 | G11: =F11*'Herd Data'!$C$8 -> 10029.15
B12: Purchased Hay per Cow | C12: ton | D12: 0 | E12: 100 | F12: =(D12*E12)/'Herd Data'!C8 -> 0 | G12: =F12*'Herd Data'!$C$8 -> 0
B13: Bull (Pasture & Hay)2 | C13: $ | D13: 1.7 | E13: =SUM(F10:F12) -> 488.323 | F13: =SUM(D13*E13)*'Herd Data'!C13 -> 33.205964 | G13: =SUM(F13*'Herd Data'!C8) -> 1660.2982
B14: Supplemental Feed | C14: head | D14: 1 | E14: =+'Supp Feed'!$H$57 -> 26.775 | F14: =SUM(D14*(E14)) -> 26.775 | G14: =E14*'Herd Data'!$C$8 -> 1338.75
B15: Salt & Mineral | C15: lb | D15: 91.25 | E15: 0.46 | F15: 41.975 | G15: =F15*'Herd Data'!$C$8 -> 2098.75
B16: Vet & Med | C16: head | D16: 1 | E16: =+'Vet&Med'!E66 -> 33.092 | F16: 33.092 | G16: =F16*'Herd Data'!$C$8 -> 1654.6
B17: Reproduction (Artificial Insemination)3 | C17: head | D17: 0 | E17: =+Repro!E13 -> 61.2 | F17: =(D17*E17)/'Herd Data'!C8 -> 0 | G17: =F17*'Herd Data'!$C$8 -> 0
B18: Other Expenses | C18: head | D18: 1 | E18: =+'Other Expenses'!D11 -> 1.5 | F18: 1.5 | G18: =F18*'Herd Data'!$C$8 -> 75
B19: Labor | C19: hours | D19: 8 | E19: 15 | F19: 120 | G19: =F19*'Herd Data'!$C$8 -> 6000
D20: Production Expenses | F20: =SUM(F10:F19) -> 744.870964 | G20: =SUM(G10:G19) -> 37243.5482
B22: Interest | C22: $ | D22: =F20 -> 744.870964 | E22: 0.07 | F22: =D22*(E22/2) -> 26.07048374 | G22: =F22*'Herd Data'!$C$8 -> 1303.524187
B23: Marketing | C23: head | D23: ='Herd Data'!C16+'Herd Data'!C17+'Herd Data'!C9 -> 0.86 | E23: =Marketing!E14 -> 41.82587209 | F23: =D23*E23 -> 35.97025 | G23: =F23*'Herd Data'!$C$8 -> 1798.5125
B24: Land Rent | C24: acre | D24: 0 | E24: 0 | F24: =(D24*E24)/'Herd Data'!C8 -> 0 | G24: =F24*'Herd Data'!$C$8 -> 0
C25: Total Variable Expenses | F25: =SUM(F20:F24) -> 806.9116977 | G25: =SUM(G20:G24) -> 40345.58489
C26: Returns to Variable Expenses | F26: =F7-F25 -> 282.1883023 | G26: =G7-G25 -> 14109.41511
A27: Fixed Expenses
B28: Livestock Facilities & Equipment | C28: head | D28: 1 | E28: ='Buildings&Equipment'!P13 -> 71.093125 | F28: =D28*E28 -> 71.093125 | G28: =F28*'Herd Data'!$C$8 -> 3554.65625
B29: Pasture & Hay Machinery/Equipment | C29: head | D29: 1 | E29: ='Buildings&Equipment'!P36 -> 223.1625 | F29: =D29*E29 -> 223.1625 | G29: =F29*'Herd Data'!$C$8 -> 11158.125
B30: Purchased Breeding Stock4 | C30: head | D30: 1 | E30: =('Breeding Stock'!F5+'Breeding Stock'!H5)+(('Breeding Stock'!F7+'Breeding Stock'!H7)*'Herd Data'!C13) -> 29.91 | F30: 29.91 | G30: =F30*'Herd Data'!$C$8 -> 1495.5
B31: Purchased Heifers, (not bred) | C31: head | D31: ='Herd Data'!C11/'Herd Data'!C8 -> 0 | E31: ='Breeding Stock'!C6 -> 3000 | F31: 0 | G31: =F31*'Herd Data'!$C$8 -> 0
B32: Miscellaneous Overhead5 | C32: head | D32: 1 | E32: =('Buildings&Equipment'!Q13+'Buildings&Equipment'!Q36) -> 235.290125 | F32: =D32*E32*0.1 -> 23.5290125 | G32: =F32*'Herd Data'!$C$8 -> 1176.450625
D33: Total Fixed Expenses | F33: =SUM(F28:F32) -> 347.6946375 | G33: =SUM(G28:G32) -> 17384.73187
D35: Total Expenses | F35: =F25+F33 -> 1154.606335 | G35: =G25+G33 -> 57730.31676
B36: Net Return to Land and Management | F36: =F7-F35 -> -65.50633524 | G36: =G7-G35 -> -3275.316762
A38: 1Cull cow revenue ($/cow) = (weight X price X number of cows sold) / total number of cows $192.00 = (1200 lbs X $1.00/lb X 8 cows sold) / 50 cows The same method is used to calculate heifer and steer calf revenue on a $/cow basis.
A41: 2Accounts for bull pasture and hay costs on a yearly basis. Assumes costs are 1.7 times higher than a cow.
A42: 3If artificial insemination is utilized, then users of this budget are encouraged to evaluate the "Number of Breeding Bulls' on the 'Herd Data' tab.
A44: 4Accounts for annual depreciation and interest on purchased breeding stock (cows and bulls).
A45: 5Miscellaneous overhead is assumed to be 10% of total overhead costs to account for unforeseen costs associated with overhead.
A48: Users may type over the default values in the orange boxes with any valid number that reflects their specific circumstance.

Sheet Budget-Print (hidden)
A1: Estimated Returns and Expenses for Beef Cow-Calf Operation in Tennessee
B2: Item | C2: Unit | D2: Quantity | E2: Price | F2: $/Cow | G2: $/Herd | H2: Your Farm
A3: Revenue1
B4: Cull Cows | C4: lb | D4: 1200 | E4: =+Budget!E4 -> 1 | F4: =D4*E4*'Herd Data'!C9 -> 192 | G4: =F4*'Herd Data'!$C$8 -> 9600 | H4: _________
B5: Heifer Calves | C5: lb | D5: 520 | E5: =+Budget!E5 -> 2.25 | F5: =D5*E5*'Herd Data'!C16 -> 304.2 | G5: =F5*'Herd Data'!$C$8 -> 15210 | H5: _________
B6: Steer Calves | C6: lb | D6: 550 | E6: =+Budget!E6 -> 2.45 | F6: =D6*E6*'Herd Data'!C17 -> 592.9 | G6: =F6*'Herd Data'!$C$8 -> 29645 | H6: _________
D7: Total Revenue | F7: =SUM(F4:F6) -> 1089.1 | G7: =SUM(G4:G6) -> 54455 | H7: _________
A9: Variable Expenses
B10: Pasture Production | C10: acre | D10: =+Budget!D10 -> 2 | E10: =+Budget!E10 -> 143.87 | F10: =D10*E10 -> 287.74 | G10: =F10*'Herd Data'!$C$8 -> 14387 | H10: _________
B11: Hay Production | C11: acre | D11: =+Budget!D11 -> 0.9 | E11: =+Budget!E11 -> 222.87 | F11: =D11*E11 -> 200.583 | G11: =F11*'Herd Data'!$C$8 -> 10029.15 | H11: _________
B12: Purchased Hay per Cow | C12: ton | D12: =+Budget!D12 -> 0 | E12: =+Budget!E12 -> 100 | F12: =D12*E12 -> 0 | G12: =F12*'Herd Data'!$C$8 -> 0 | H12: _________
B13: Bull (Pasture & Hay)2 | C13: $ | D13: =+Budget!D13 -> 1.7 | E13: =+Budget!E13 -> 488.323 | F13: =+Budget!F13 -> 33.205964 | G13: =F13*'Herd Data'!$C$8 -> 1660.2982 | H13: _________
B14: Supplemental Feed | C14: head | D14: =+Budget!D14 -> 1 | E14: =+Budget!E14 -> 26.775 | F14: =D14*E14 -> 26.775 | G14: =F14*'Herd Data'!$C$8 -> 1338.75 | H14: _________
B15: Salt & Mineral | C15: lb | D15: =+Budget!D15 -> 91.25 | E15: =+Budget!E15 -> 0.46 | F15: 41.975 | G15: =F15*'Herd Data'!$C$8 -> 2098.75 | H15: _________
B16: Vet & Med | C16: head | D16: =+Budget!D16 -> 1 | E16: =+Budget!E16 -> 33.092 | F16: 33.092 | G16: =F16*'Herd Data'!$C$8 -> 1654.6 | H16: _________
B17: Reproduction (Artificial Insemination)3 | C17: head | D17: =+Budget!D17 -> 0 | E17: =+Budget!E17 -> 61.2 | F17: 0 | G17: =F17*'Herd Data'!$C$8 -> 0 | H17: _________
B18: Other Expenses | C18: head | D18: =+Budget!D18 -> 1 | E18: =+Budget!E18 -> 1.5 | F18: 1.5 | G18: =F18*'Herd Data'!$C$8 -> 75 | H18: _________
B19: Labor | C19: hours | D19: =+Budget!D19 -> 8 | E19: =+Budget!E19 -> 15 | F19: 120 | G19: =F19*'Herd Data'!$C$8 -> 6000 | H19: _________
D20: Production Expenses | F20: =SUM(F10:F19) -> 744.870964 | G20: =SUM(G10:G19) -> 37243.5482 | H20: _________
B22: Interest | C22: $ | D22: =+Budget!D22 -> 744.870964 | E22: =+Budget!E22 -> 0.07 | F22: =+Budget!F22 -> 26.07048374 | G22: =F22*'Herd Data'!$C$8 -> 1303.524187 | H22: _________
B23: Marketing | C23: head | D23: =+Budget!D23 -> 0.86 | E23: =+Budget!E23 -> 41.82587209 | F23: =+Budget!F23 -> 35.97025 | G23: =F23*'Herd Data'!$C$8 -> 1798.5125 | H23: _________
B24: Land Rent | C24: acre | D24: =+Budget!D24 -> 0 | E24: =+Budget!E24 -> 0 | F24: =+Budget!F24 -> 0 | G24: =F24*'Herd Data'!$C$8 -> 0 | H24: _________
C25: Total Variable Expenses | F25: =SUM(F20:F24) -> 806.9116977 | G25: =SUM(G20:G24) -> 40345.58489 | H25: _________
C26: Returns to Variable Expenses | F26: =F7-F25 -> 282.1883023 | G26: =G7-G25 -> 14109.41511 | H26: _________
A27: Fixed Expenses
B28: Livestock Facilities & Equipment | C28: head | D28: =+Budget!D28 -> 1 | E28: =+Budget!E28 -> 71.093125 | F28: =+Budget!F28 -> 71.093125 | G28: =F28*'Herd Data'!$C$8 -> 3554.65625 | H28: _________
B29: Pasture & Hay Machinery/Equipment | C29: head | D29: =+Budget!D29 -> 1 | E29: =+Budget!E29 -> 223.1625 | F29: =+Budget!F29 -> 223.1625 | G29: =F29*'Herd Data'!$C$8 -> 11158.125 | H29: _________
B30: Purchased Breeding Stock4 | C30: head | D30: =+Budget!D30 -> 1 | E30: =+Budget!E30 -> 29.91 | F30: =+Budget!F30 -> 29.91 | G30: =F30*'Herd Data'!$C$8 -> 1495.5 | H30: _________
B31: Purchased Heifers, (not bred) | C31: head | D31: =+Budget!D31 -> 0 | E31: =+Budget!E31 -> 3000 | F31: =+Budget!F31 -> 0 | G31: =F31*'Herd Data'!$C$8 -> 0 | H31: _________
B32: Miscellaneous Overhead5 | C32: head | D32: =+Budget!D32 -> 1 | E32: =+Budget!E32 -> 235.290125 | F32: =+Budget!F32 -> 23.5290125 | G32: =F32*'Herd Data'!$C$8 -> 1176.450625 | H32: _________
D33: Total Fixed Expenses | F33: =SUM(F28:F32) -> 347.6946375 | G33: =SUM(G28:G32) -> 17384.73187 | H33: _________
D35: Total Expenses | F35: =+Budget!F35 -> 1154.606335 | G35: =F35*'Herd Data'!$C$8 -> 57730.31676 | H35: _________
B36: Net Return to Land and Management | F36: =+Budget!F36 -> -65.50633524 | G36: =+Budget!G36 -> -3275.316762 | H36: _________
A37: Footnotes:
A38: 1Cull cow revenue ($/cow) = (weight X price X number of cows sold) / total number of cows $192.00 = (1200 lbs X $1.00/lb X 8 cows sold) / 50 cows The same method is used to calculate heifer and steer calf revenue on a $/cow basis.
A41: 2Accounts for bull pasture and hay costs on a yearly basis. Assumes costs are 1.7 times higher than a cow.
A42: 3If artificial insemination is utilized, then users of this budget are encouraged to evaluate the number of breeding bulls.
A43: 4Accounts for annual depreciation and interest on purchased breeding stock (cows and bulls).
A44: 5Miscellaneous overhead is assumed to be 10% of total overhead costs to account for unforeseen costs associated with overhead.

Sheet Herd Data
A2: Herd Data
A3: Item | B3: Unit | C3: Quantity
A4: Calving Rate | B4: % | C4: 0.9
A5: Death Loss for Cows | B5: % | C5: 0.02
A6: Death Loss for Calves | B6: % | C6: 0.02
A7: Number of Breeding Bulls | B7: head | C7: 2
A8: Herd Size (Number of Cows)1 | B8: head | C8: 50
A9: Culled Cows | B9: % | C9: 0.16
A10: Full Retained Heifer Replacement Rate2 | B10: % | C10: 1
A11: Purchased Replacement Heifer (not bred) | B11: head | C11: 0
A13: Bull per Cow | B13: head3 | C13: =SUM(C7/C8) -> 0.04
A14: Full Retained Heifer Replacement per Cow | B14: head | C14: =C9+C5 -> 0.18
A15: Retained Heifer Replacement per Cow | B15: head | C15: =C14*C10 -> 0.18
A16: Heifers Sold per Cow | B16: head | C16: =(C4/2)-(C6/2)-C15 -> 0.26
A17: Steers Sold per Cow | B17: head | C17: =(C4/2)-(C6/2) -> 0.44
A18: Culled Cows Sold | B18: head | C18: =C8*C9 -> 8
A19: Heifers Sold | B19: head | C19: =C16*C8 -> 13
A20: Steers Sold | B20: head | C20: =C17*C8 -> 22
A21: Retained Replacement Heifers | B21: head | C21: =C15*C8 -> 9
A24: 1Includes cows and heifers in the breeding herd.
A25: 2This value is associated with “cull cow percentage,” “death loss of cows” as well as home raised heifers. Therefore, a value of 100% means the same number of home raised heifers will be retained as the number of cows that were culled or lost due to death. A value greater than 100% means heifer retention exceeds cow death loss plus cow cull rate and vice versa for a value less than 100%.
A26: 3The author understands the number of head will be a whole number but the budget is for projection purposes.
A29: Users may type over the default values in the orange boxes with any valid number that reflects their specific circumstance.

Sheet Supp Feed
A2: Supplemental Feed for Cows
D3: Unit Weight | F3: Quantity Fed | G3: Total Fed | H3: Cost
A4: Feed Description | B4: Unit | C4: $/Unit | D4: lbs | E4: Days Fed | F4: lbs/day | G4: lbs | H4: $/Cow
A5: 14% Commercial Feed | B5: ton | C5: 350 | D5: 2000 | G5: =E5*F5 -> 0 | H5: =IF(G5>0,(G5/D5)*C5,0) -> 0
A6: Corn Gluten | B6: ton | C6: 240 | D6: 2000 | G6: =E6*F6 -> 0 | H6: =IF(G6>0,(G6/D6)*C6,0) -> 0
A7: Soy Hulls | B7: ton | C7: 225 | D7: 2000 | G7: 0 | H7: 0
A8: Other | C8: 0 | G8: 0 | H8: 0
A9: Other | C9: 0 | G9: 0 | H9: 0
A10: Total Cost of Supplemental Feed for Cows | G10: =SUM(G5:G9) -> 0 | H10: =SUM(H5:H9) -> 0 | N10: Cows
G11: $/lb Fed | H11: =IF(G10>0,H10/G10,0) -> 0 | N11: =SUM(G10) -> 0 | O11: =SUM(H11) -> 0 | P11: =SUM(N11*O11) -> 0
A13: Supplemental Feed for Retained Replacement Heifers
D14: Unit Weight | F14: Quantity Fed | G14: Total Fed | H14: Cost
A15: Feed Description | B15: Unit | C15: $/Unit | D15: lbs | E15: Days Fed | F15: lbs/day | G15: lbs | H15: $/Heifer
A16: 14% Commercial Feed | B16: ton | C16: 350 | D16: 2000 | E16: 150 | F16: 3 | G16: =E16*F16 -> 450 | H16: =IF(G16>0,(G16/D16)*C16,0) -> 78.75
A17: Corn Gluten | B17: ton | C17: 240 | D17: 2000 | G17: =E17*F17 -> 0 | H17: =IF(G17>0,(G17/D17)*C17,0) -> 0
A18: Soy Hulls | B18: ton | C18: 225 | D18: 2000 | G18: 0 | H18: 0
A19: Other | C19: 0 | G19: 0 | H19: 0
A20: Other | C20: 0 | G20: 0 | H20: 0 | N20: Heifers
A21: Total Cost of Supplemental Feed for Retained Heifers | G21: =SUM(G16:G20) -> 450 | H21: =SUM(H16:H20) -> 78.75 | N21: =IF('Herd Data'!C15=0,0,SUM($G$21*('Herd Data'!$C$15/('Herd Data'!$C$15+Budget!$D$31))+'Supp Feed'!$G$32*(Budget!$D$31/('Herd Data'!$C$15+Budget!$D$31)))) -> 450 | O21: =IF('Herd Data'!C15=0,0,SUM($H$22*('Herd Data'!$C$15/('Herd Data'!$C$15+Budget!$D$31))+'Supp Feed'!$H$33*(Budget!$D$31/('Herd Data'!$C$15+Budget!$D$31)))) -> 0.175 | P21: =SUM(N21*O21*('Herd Data'!C15+Budget!D31)) -> 14.175
G22: $/lb Fed | H22: =IF(G21>0,H21/G21,0) -> 0.175
A24: Supplemental Feed for Purchased Replacement Heifers
D25: Unit Weight | F25: Quantity Fed | G25: Total Fed | H25: Cost
A26: Feed Description | B26: Unit | C26: $/Unit | D26: lbs | E26: Days Fed | F26: lbs/day | G26: lbs | H26: $/Heifer
A27: 14% Commercial Feed | B27: ton | C27: 350 | D27: 2000 | G27: =E27*F27 -> 0 | H27: =IF(G27>0,(G27/D27)*C27,0) -> 0
A28: Corn Gluten | B28: ton | C28: 240 | D28: 2000 | G28: =E28*F28 -> 0 | H28: =IF(G28>0,(G28/D28)*C28,0) -> 0
A29: Soy Hulls | B29: ton | C29: 225 | D29: 2000 | G29: =E29*F29 -> 0 | H29: 0
A30: Other | C30: 0 | G30: 0 | H30: 0
A31: Other | C31: 0 | G31: 0 | H31: 0
A32: Total Cost of Supplemental Feed for Purchased Heifers | G32: =SUM(G27:G31) -> 0 | H32: =SUM(H27:H31) -> 0
G33: $/lb Fed | H33: =IF(G32>0,H32/G32,0) -> 0
A35: Supplemental Feed for Herd Bulls
D36: Unit Weight | F36: Quantity Fed | G36: Total Fed | H36: Cost | N36: Bulls
A37: Feed Description | B37: Unit | C37: $/Unit | D37: lbs | E37: Days Fed | F37: lbs/day | G37: lbs | H37: $/Bull | N37: =+G43 -> 300 | O37: =+H44 -> 0.175 | P37: =SUM(N37*O37)*'Herd Data'!C13 -> 2.1
A38: 14% Commercial Feed | B38: ton | C38: 350 | D38: 2000 | E38: 60 | F38: 5 | G38: =E38*F38 -> 300 | H38: =IF(G38>0,(G38/D38)*C38,0) -> 52.5
A39: Corn Gluten | B39: ton | C39: 240 | D39: 2000 | G39: =E39*F39 -> 0 | H39: =IF(G39>0,(G39/D39)*C39,0) -> 0
A40: Soy Hulls | B40: ton | C40: 225 | D40: 2000 | G40: 0 | H40: 0
A41: Other | C41: 0 | G41: 0 | H41: 0
A42: Other | C42: 0 | G42: 0 | H42: 0
A43: Total Cost of Supplemental Feed for Herd Bulls | G43: =SUM(G38:G42) -> 300 | H43: =SUM(H38:H42) -> 52.5
G44: $/lb Fed | H44: =IF(G43>0,H43/G43,0) -> 0.175
A46: Supplemental Feed for Calves
D47: Unit Weight | F47: Quantity Fed | G47: Total Fed | H47: Cost | N47: Calves
A48: Feed Description | B48: Unit | C48: $/Unit | D48: lbs | E48: Days Fed | F48: lbs/day | G48: lbs | H48: $/Calf | N48: =+G54 -> 60 | O48: =+H55 -> 0.175 | P48: =SUM(N48*O48) -> 10.5
A49: 14% Commercial Feed | B49: ton | C49: 350 | D49: 2000 | E49: 30 | F49: 2 | G49: =E49*F49 -> 60 | H49: =IF(G49>0,(G49/D49)*C49,0) -> 10.5
A50: Corn Gluten | B50: ton | C50: 240 | D50: 2000 | G50: =E50*F50 -> 0 | H50: =IF(G50>0,(G50/D50)*C50,0) -> 0
A51: Soy Hulls | B51: ton | C51: 225 | D51: 2000 | G51: 0 | H51: 0
A52: Other | C52: 0 | G52: 0 | H52: 0
A53: Other | C53: 0 | G53: 0 | H53: 0
A54: Total Cost of Supplemental Feed for Calves | G54: =SUM(G49:G53) -> 60 | H54: =SUM(H49:H53) -> 10.5
G55: $/lb Fed | H55: =IF(G54>0,H54/G54,0) -> 0.175
A57: Total Supplemental Feed Costs | H57: =+P57 -> 26.775 | N57: =SUM(N11+N21+N37+N48) -> 810 | O57: =SUM(O11+O21+O37+O48) -> 0.525 | P57: =SUM(P11+P21+P37+P48) -> 26.775
A60: Users may type over the default values in the orange boxes with any valid number that reflects their specific circumstance.

Sheet Pasture&Hay
A2: Pasture Expenses per Acre
E3: Cost
A4: Item | B4: Unit | C4: $/Unit | D4: Quantity | E4: $/acre
A5: Prorated Establishment Cost | B5: acre | C5: 40 | D5: 1 | E5: =C5*D5 -> 40
A6: Nitrogen | B6: lb | C6: 0.6 | D6: 60 | E6: =C6*D6 -> 36
A7: Phosphorus (P2O5) | B7: lb | C7: 0.53 | D7: 30 | E7: 15.9
A8: Potassium (K2O) | B8: lb | C8: 0.43 | D8: 30 | E8: 12.9
A9: Fertilizer Application | B9: acre | C9: 9 | D9: 1 | E9: 9
A10: Lime | B10: ton | C10: 50 | D10: 0.2 | E10: 10
A11: Lime Application | B11: acre | C11: 12 | D11: 0.2 | E11: 2.4
A12: Herbicide | B12: acre | C12: 7 | D12: 1 | E12: 7
A13: Herbicide Application | B13: acre | C13: 10.67 | D13: 1 | E13: 10.67
A14: Other | B14: acre | C14: 0 | E14: 0
A15: Other | B15: acre | C15: 0 | E15: 0
A16: Total Pasture Expenses | E16: =SUM(E5:E15) -> 143.87
A18: Hay Expenses per Acre | H18: Hay Acreage Calculator per Cow
E19: Cost | H19: Hay Yield (tons/acre) | I19: 2.5
A20: Item | B20: Unit | C20: $/Unit | D20: Quantity | E20: $/acre | H20: Feeding (days/year) | I20: 150
A21: Prorated Establishment Cost | B21: acre | C21: 40 | D21: 1 | E21: =C21*D21 -> 40 | H21: Fed (lb/day) | I21: 30
A22: Nitrogen | B22: lb | C22: 0.6 | D22: 100 | E22: =C22*D22 -> 60 | H22: Total Fed (tons/year) | I22: =(I20*I21)/2000 -> 2.25
A23: Phosphorus (P2O5) | B23: lb | C23: 0.53 | D23: 30 | E23: 15.9 | H23: Hay (acre/cow) | I23: =SUM(I22/I19) -> 0.9
A24: Potassium (K2O) | B24: lb | C24: 0.43 | D24: 30 | E24: 12.9
A25: Fertilizer Application | B25: acre | C25: 9 | D25: 1 | E25: 9
A26: Lime | B26: ton | C26: 50 | D26: 0.2 | E26: 10
A27: Lime Application | B27: acre | C27: 12 | D27: 0.2 | E27: 2.4
A28: Herbicide | B28: acre | C28: 7 | D28: 1 | E28: 7
A29: Herbicide Application | B29: acre | C29: 10.67 | D29: 1 | E29: 10.67
A30: Mowing | B30: acre | C30: 17.5 | D30: 1 | E30: 17.5
A31: Teddering | B31: acre | C31: 9.5 | D31: 1 | E31: 9.5
A32: Raking | B32: acre | C32: 9 | D32: 1 | E32: 9
A33: Baling | B33: bale | C33: 14 | D33: 1 | E33: 14
A34: Moving/Hauling | B34: acre | C34: 5 | D34: 1 | E34: 5
A35: Other | B35: acre | C35: 0 | E35: =C35*D35 -> 0
A36: Other | B36: acre | C36: 0 | E36: 0
A37: Total Hay Expenses | E37: =SUM(E21:E36) -> 222.87
A38: To assist in calculating fertilizer costs and hay needs visit the following web address:
A39: https://arec.tennessee.edu/extension/
A41: Users may type over the default values in the orange boxes with any valid number that reflects their specific circumstance.

Sheet Vet&Med
A2: Veterinary Expenses for Cows
D3: No. of | E3: Total
A4: Item Description | B4: Unit | C4: $/Unit | D4: Treatments | E4: $/head
A5: Respiratory Vaccine, IBR/BVD/PI3/BRSV, Lepto/Vibrio | B5: head | C5: 3.02 | D5: 1 | E5: =C5*D5 -> 3.02
A6: Clostridial Bacterin/Toxoid, 7-way Blackleg/H. somnus | B6: head | C6: 1.33 | D6: 1 | E6: =C6*D6 -> 1.33
A7: Deworm | B7: head | C7: 7 | D7: 1 | E7: 7
A8: Fly Tags | B8: head | C8: 1.5 | D8: 2 | E8: 3
A9: Other | B9: head | C9: 0 | E9: =C9*D9 -> 0
A10: Other | B10: head | C10: 0 | E10: 0 | I10: Cows
A11: Total Veterinary Expenses for Cows | E11: =SUM(E5:E10) -> 14.35 | I11: =+E11 -> 14.35
A14: Veterinary Expenses for Retained Replacement Heifers
D15: No. of | E15: Total
A16: Item Description | B16: Unit | C16: $/Unit | D16: Treatments | E16: $/head
A17: Respiratory Vaccine, IBR/BVD/PI3/BRSV, Lepto/Vibrio | B17: head | C17: 3.02 | D17: 2 | E17: =C17*D17 -> 6.04
A18: Clostridial Bacterin/Toxoid, 7-way Blackleg/H. somnus | B18: head | C18: 1.33 | D18: 2 | E18: =C18*D18 -> 2.66
A19: Deworm | B19: head | C19: 7 | D19: 1 | E19: 7
A20: Fly Tags | B20: head | C20: 1.5 | D20: 1 | E20: 1.5
A21: Other | B21: head | C21: 0 | E21: =C21*D21 -> 0
A22: Other | B22: head | C22: 0 | E22: 0 | I22: Heifers
A23: Total Veterinary Expenses for Retained Replacement Heifers | E23: =SUM(E17:E22) -> 17.2 | I23: =SUM('Herd Data'!C15+Budget!D31) -> 0.18 | J23: =IF('Herd Data'!C15=0,0,SUM(E23*'Herd Data'!C15/'Herd Data'!C15+Budget!D31)+E35*(Budget!D31/'Herd Data'!C15+Budget!D31)) -> 17.2 | K23: =SUM(I23*J23) -> 3.096
A26: Veterinary Expenses for Purchased Replacement Heifers
D27: No. of | E27: Total
A28: Item Description | B28: Unit | C28: $/Unit | D28: Treatments | E28: $/head
A29: Respiratory Vaccine, IBR/BVD/PI3/BRSV, Lepto/Vibrio | B29: head | C29: 3.02 | D29: 2 | E29: =C29*D29 -> 6.04
A30: Clostridial Bacterin/Toxoid, 7-way Blackleg/H. somnus | B30: head | C30: 1.33 | D30: 2 | E30: =C30*D30 -> 2.66
A31: Deworm | B31: head | C31: 7 | D31: 1 | E31: 7
A32: Fly Tags | B32: head | C32: 1.5 | D32: 1 | E32: 1.5
A33: Other | B33: head | C33: 0 | E33: =C33*D33 -> 0
A34: Other | B34: head | C34: 0 | E34: 0
A35: Total Veterinary Expenses for Purchased Replacement Heifers | E35: =SUM(E29:E34) -> 17.2
A38: Veterinary Expenses for Herd Bull
D39: No. of | E39: Total
A40: Item Description | B40: Unit | C40: $/Unit | D40: Treatments | E40: $/head
A41: Respiratory Vaccine, IBR/BVD/PI3/BRSV, Lepto/Vibrio | B41: head | C41: 3.02 | D41: 1 | E41: =C41*D41 -> 3.02
A42: Clostridial Bacterin/Toxoid, 7-way Blackleg/H. somnus | B42: head | C42: 1.33 | D42: 1 | E42: =C42*D42 -> 1.33
A43: Deworm | B43: head | C43: 10 | D43: 1 | E43: 10
A44: Fly Tags | B44: head | C44: 1.5 | D44: 2 | E44: 3
A45: Breeding Soundness Exam | B45: head | C45: 70 | D45: 1 | E45: 70 | I45: Bulls
A46: Other | B46: head | C46: 0 | E46: =C46*D46 -> 0 | I46: =+'Herd Data'!C13 -> 0.04 | J46: =+E48 -> 87.35 | K46: =SUM(I46*J46) -> 3.494
A47: Other | B47: head | C47: 0 | E47: 0
A48: Total Veterinary Expenses for Herd Bull | E48: =SUM(E41:E47) -> 87.35
A51: Veterinary Expenses for Calves
D52: No. of | E52: Total
A53: Item Description | B53: Unit | C53: $/Unit | D53: Treatments | E53: $/head
A54: Implant | B54: head | C54: 2 | D54: 1 | E54: =C54*D54 -> 2
A55: Respiratory Vaccine, IBR/BVD/PI3/BRSV | B55: head | C55: 2 | D55: 1 | E55: =C55*D55 -> 2
A56: Respiratory Vaccine, IBR/BVD/PI3/BRSV (pasteurella) | B56: head | C56: 5.2 | D56: 1 | E56: =C56*D56 -> 5.2
A57: Clostridial Bacterin/Toxoid, 7-way Blackleg/H. somnus | B57: head | C57: 1.33 | D57: 2 | E57: =C57*D57 -> 2.66
A58: Deworm | B58: head | C58: 4 | D58: 1 | E58: 4
A59: Fly Tags | B59: head | C59: 1.5 | D59: 1 | E59: 1.5
A60: Other | B60: head | C60: 0 | E60: =C60*D60 -> 0
A61: Other | B61: head | C61: 0 | E61: 0
A62: Total Veterinary Expenses for Calves | E62: =SUM(E54:E61) -> 17.36 | I62: Calves
I63: =SUM('Herd Data'!C16:C17) -> 0.7 | J63: =+E62 -> 17.36 | K63: =SUM(I63*J63) -> 12.152
A66: Total Veterinary Expenses | E66: =SUM(I11+K23+K46+K63) -> 33.092
A68: Users may type over the default values in the orange boxes with any valid number that reflects their specific circumstance.

Sheet Repro
A2: Reproduction Expenses for Artificial Insemination
D3: No. of | E3: Total
A4: Item Description | B4: Unit | C4: $/Unit | D4: Treatments | E4: $/head
A5: Progesterone Insert | B5: head | C5: 11.7 | D5: 1 | E5: =C5*D5 -> 11.7
A6: Prostaglandin | B6: head | C6: 5 | D6: 1 | E6: =C6*D6 -> 5
A7: Estrus Detection Patch | B7: head | C7: 1.5 | D7: 1 | E7: 1.5
A8: Semen | B8: head | C8: 20 | D8: 1 | E8: =C8*D8 -> 20
A9: Breeding Charge | B9: head | C9: 10 | D9: 1 | E9: 10
A10: GnRH | B10: head | C10: 3 | D10: 2 | E10: 6
A11: Pregnancy Detection | B11: head | C11: 7 | D11: 1 | E11: =C11*D11 -> 7
A12: Other | B12: head | C12: 0 | D12: 0 | E12: 0
A13: Total Reproduction Expenses for Artificial Insemination | E13: =SUM(E5:E12) -> 61.2
A17: Users may type over the default values in the orange boxes with any valid number that reflects their specific circumstance.

Sheet Marketing
A2: Marketing Cost
D3: Price | E3: Amount
A4: Item | B4: Unit | C4: Quantity | D4: $/unit | E4: $/head
A5: Commission | B5: % | C5: 0.025 | D5: =((Budget!D4*Budget!E4)*('Herd Data'!C9/Budget!D23))+((Budget!D5*Budget!E5)*('Herd Data'!C16/Budget!D23))+((Budget!D6*Budget!E6)*('Herd Data'!C17/Budget!D23)) -> 1266.395349 | E5: =C5*D5 -> 31.65988372
A6: Commission | B6: Head | C6: 1 | D6: 0 | E6: =C6*D6 -> 0
A7: Yardage | B7: Day | C7: 1 | D7: 1 | E7: 1
A8: Check-off | B8: Head | C8: 1 | D8: 1.5 | E8: 1.5
A9: Insurance | B9: % | C9: 0.0025 | D9: =((Budget!D4*Budget!E4)*('Herd Data'!C9/Budget!D23))+((Budget!D5*Budget!E5)*('Herd Data'!C16/Budget!D23))+((Budget!D6*Budget!E6)*('Herd Data'!C17/Budget!D23)) -> 1266.395349 | E9: 3.165988372
A10: Hauling | B10: Loaded Miles | C10: 30 | D10: 3 | E10: =C10*D10/F10 -> 4.5 | F10: 20 | G10: Head per load
A11: Other | D11: 0 | E11: =C11*D11 -> 0
A12: Other | D12: 0 | E12: 0
A13: Other | E13: 0
A14: Total Marketing Cost | E14: =SUM(E5:E13) -> 41.82587209
A16: Users may type over the default values in the orange boxes with any valid number that reflects their specific circumstance.

Sheet Buildings&Equipment
A2: Buildings and Handling Equipment Expenses
B3: Purchase | E3: Salvage | F3: Salvage | G3: Average | H3: Useful | J3: Interest | M3: Property | P3: Fixed Cost | Q3: Overhead
A4: Item | B4: Price | C4: Units | D4: Cost | E4: Percent | F4: Value1 | G4: Value2 | H4: Life | I4: Depreciation3 | J4: Rate | K4: Interest4 | L4: Insurance5 | M4: Tax6 | N4: Repairs7 | O4: Head | P4: $/Head | Q4: $/Head
A5: Hay Barn (30'X50'X14') | B5: 9000 | C5: 1 | D5: =B5*C5 -> 9000 | E5: 0.2 | F5: =D5*E5 -> 1800 | G5: =(D5+F5+I5)/2 -> 5640 | H5: 15 | I5: =(D5-F5)/H5 -> 480 | J5: 0.0525 | K5: =G5*J5 -> 296.1 | L5: =G5*0.005 -> 28.2 | M5: =G5*0.005 -> 28.2 | N5: =D5*0.02 -> 180 | O5: ='Herd Data'!$C$8 -> 50 | P5: =(I5+SUM(K5:N5))/O5 -> 20.25 | Q5: =(I5+K5)/O5 -> 15.522
A6: Equipment Shed (20'X40'X14') | B6: 5000 | C6: 0 | D6: =B6*C6 -> 0 | E6: 0.2 | F6: =D6*E6 -> 0 | G6: =(D6+F6+I6)/2 -> 0 | H6: 15 | I6: =(D6-F6)/H6 -> 0 | J6: 0.0525 | K6: =G6*J6 -> 0 | L6: =G6*0.005 -> 0 | M6: =G6*0.005 -> 0 | N6: =D6*0.02 -> 0 | O6: ='Herd Data'!$C$8 -> 50 | P6: =(I6+SUM(K6:N6))/O6 -> 0 | Q6: =(I6+K6)/O6 -> 0
A7: Corral and Chute/Head Gate | B7: 9000 | C7: 1 | D7: 9000 | E7: 0.16 | F7: 1440 | G7: 5692.5 | H7: 8 | I7: 945 | J7: 0.0525 | K7: 298.85625 | L7: 28.4625 | M7: 28.4625 | N7: 180 | O7: ='Herd Data'!$C$8 -> 50 | P7: 29.615625 | Q7: 24.877125
A8: Fencing | B8: 7000 | C8: 1 | D8: 7000 | E8: 0 | F8: 0 | G8: 3850 | H8: 10 | I8: 700 | J8: 0.0525 | K8: 202.125 | L8: 19.25 | M8: =G8*0 -> 0 | N8: 140 | O8: ='Herd Data'!$C$8 -> 50 | P8: 21.2275 | Q8: 18.0425
A9: Water Systems | B9: 7000 | C9: 0 | D9: 0 | E9: 0 | F9: 0 | G9: 0 | H9: 10 | I9: 0 | J9: 0.0525 | K9: 0 | L9: 0 | M9: =G9*0 -> 0 | N9: 0 | O9: ='Herd Data'!$C$8 -> 50 | P9: 0 | Q9: 0
A10: Stock Trailer (6'X20') | B10: 12000 | C10: 0 | D10: =B10*C10 -> 0 | E10: 0.31 | F10: =D10*E10 -> 0 | G10: =(D10+F10+I10)/2 -> 0 | H10: 11 | I10: =(D10-F10)/H10 -> 0 | J10: 0.0525 | K10: =G10*J10 -> 0 | L10: =G10*0.005 -> 0 | M10: =G10*0.005 -> 0 | N10: =D10*0.02 -> 0 | O10: ='Herd Data'!$C$8 -> 50 | P10: =(I10+SUM(K10:N10))/O10 -> 0 | Q10: =(I10+K10)/O10 -> 0
A11: Other | B11: 0 | C11: 0 | D11: 0 | E11: 0 | F11: 0 | G11: 0 | H11: 10 | I11: 0 | J11: 0.0525 | K11: 0 | L11: 0 | M11: 0 | N11: 0 | O11: ='Herd Data'!$C$8 -> 50 | P11: 0 | Q11: 0
A12: Other | B12: 0 | C12: 0 | D12: 0 | E12: 0 | F12: 0 | G12: 0 | H12: 10 | I12: 0 | J12: 0.0525 | K12: 0 | L12: 0 | M12: 0 | N12: 0 | O12: ='Herd Data'!$C$8 -> 50 | P12: 0 | Q12: 0
A13: Total Building and Handling Equipment Expenses | P13: =SUM(P5:P12) -> 71.093125 | Q13: =SUM(Q5:Q12) -> 58.441625
A14: 1Salvage Value is assumed percentage of Cost
A15: 2Average Value = (Cost + Salvage Value + 1-year Depreciation) ÷ 2
A16: 3Depreciation = (Cost - Salvage Value ÷ Useful Life)
A17: 4Interest = (Average Value × Interest Rate)
A18: 5Insurance = (Average Value × 0.5%)
A19: 6Property Tax = (Average Value × 0.5%), Fencing and Watering = 0%
A20: 7Repairs = (Cost × 1%)
A22: Machinery Expenses
B23: Purchase | E23: Salvage | F23: Salvage | G23: Average | H23: Useful | J23: Interest | M23: Property | P23: Fixed Cost | Q23: Overhead
A24: Item | B24: Price | C24: Units | D24: Cost | E24: Percent | F24: Value1 | G24: Value2 | H24: Life | I24: Depreciation3 | J24: Rate | K24: Interest4 | L24: Insurance5 | M24: Tax6 | N24: Repairs7 | O24: Head | P24: $/Head | Q24: $/Head
A25: 60 hp Tractor | B25: 20000 | C25: 1 | D25: =B25*C25 -> 20000 | E25: 0.33 | F25: =D25*E25 -> 6600 | G25: =(D25+F25+I25)/2 -> 13746.66667 | H25: 15 | I25: =(D25-F25)/H25 -> 893.3333333 | J25: 0.0525 | K25: =G25*J25 -> 721.7 | L25: =G25*0.005 -> 68.73333333 | M25: =G25*0.005 -> 68.73333333 | N25: =D25*0.02 -> 400 | O25: ='Herd Data'!$C$8 -> 50 | P25: =(I25+SUM(K25:N25))/O25 -> 43.05 | Q25: =(I25+K25)/O25 -> 32.30066667
A26: 80 hp Tractor | B26: 45000 | C26: 0 | D26: =B26*C26 -> 0 | E26: 0.33 | F26: =D26*E26 -> 0 | G26: =(D26+F26+I26)/2 -> 0 | H26: 15 | I26: =(D26-F26)/H26 -> 0 | J26: 0.0525 | K26: =G26*J26 -> 0 | L26: =G26*0.005 -> 0 | M26: =G26*0.005 -> 0 | N26: =D26*0.02 -> 0 | O26: ='Herd Data'!$C$8 -> 50 | P26: =(I26+SUM(K26:N26))/O26 -> 0 | Q26: =(I26+K26)/O26 -> 0
A27: Disc Mower (10'6'' cut) | B27: 5000 | C27: 1 | D27: 5000 | E27: 0.14 | F27: 700 | G27: 3118.75 | H27: 8 | I27: 537.5 | J27: 0.0525 | K27: 163.734375 | L27: 15.59375 | M27: 15.59375 | N27: 100 | O27: ='Herd Data'!$C$8 -> 50 | P27: 16.6484375 | Q27: 14.0246875
A28: Hay Rake (8-Wheel) | B28: 5000 | C28: 1 | D28: 5000 | E28: 0.2 | F28: 1000 | G28: 3200 | H28: 10 | I28: 400 | J28: 0.0525 | K28: 168 | L28: 16 | M28: 16 | N28: 100 | O28: ='Herd Data'!$C$8 -> 50 | P28: 14 | Q28: 11.36
A29: Hay Baler (Round 5'X6') | B29: 18000 | C29: 1 | D29: 18000 | E29: 0.27 | F29: 4860 | G29: 12087 | H29: 10 | I29: 1314 | J29: 0.0525 | K29: 634.5675 | L29: 60.435 | M29: 60.435 | N29: 360 | O29: ='Herd Data'!$C$8 -> 50 | P29: 48.58875 | Q29: 38.97135
A30: Hay Wagon | B30: 2000 | C30: 1 | D30: 2000 | E30: 0.1 | F30: 200 | G30: 1190 | H30: 10 | I30: 180 | J30: 0.0525 | K30: 62.475 | L30: 5.95 | M30: 5.95 | N30: 40 | O30: ='Herd Data'!$C$8 -> 50 | P30: 5.8875 | Q30: 4.8495
A31: Rotary Mower (15') | B31: 5000 | C31: 1 | D31: 5000 | E31: 0.14 | F31: 700 | G31: 3118.75 | H31: 8 | I31: 537.5 | J31: 0.0525 | K31: 163.734375 | L31: 15.59375 | M31: 15.59375 | N31: 100 | O31: ='Herd Data'!$C$8 -> 50 | P31: 16.6484375 | Q31: 14.0246875
A32: Tractor Mounted Sprayer | B32: 2000 | C32: 1 | D32: 2000 | E32: 0.38 | F32: 760 | G32: 1421.333333 | H32: 15 | I32: 82.66666667 | J32: 0.0525 | K32: 74.62 | L32: 7.106666667 | M32: 7.106666667 | N32: 40 | O32: ='Herd Data'!$C$8 -> 50 | P32: 4.23 | Q32: 3.145733333
A33: Truck | B33: 30000 | C33: 1 | D33: 30000 | E33: 0.25 | F33: 7500 | G33: 19687.5 | H33: 12 | I33: 1875 | J33: 0.0525 | K33: 1033.59375 | L33: 98.4375 | M33: 98.4375 | N33: 600 | O33: ='Herd Data'!$C$8 -> 50 | P33: 74.109375 | Q33: 58.171875
A34: Other | B34: 0 | C34: 0 | D34: =B34*C34 -> 0 | E34: 0 | F34: =D34*E34 -> 0 | G34: =(D34+F34+I34)/2 -> 0 | H34: 10 | I34: =(D34-F34)/H34 -> 0 | J34: 0.0525 | K34: =G34*J34 -> 0 | L34: =G34*0.005 -> 0 | M34: =G34*0.005 -> 0 | N34: =D34*0.02 -> 0 | O34: ='Herd Data'!$C$8 -> 50 | P34: 0 | Q34: 0
A35: Other | B35: 0 | C35: 0 | D35: =B35*C35 -> 0 | E35: 0 | F35: =D35*E35 -> 0 | G35: =(D35+F35+I35)/2 -> 0 | H35: 10 | I35: =(D35-F35)/H35 -> 0 | J35: 0.0525 | K35: =G35*J35 -> 0 | L35: =G35*0.005 -> 0 | M35: =G35*0.005 -> 0 | N35: =D35*0.02 -> 0 | O35: ='Herd Data'!$C$8 -> 50 | P35: =(I35+SUM(K35:N35))/O35 -> 0 | Q35: =(I35+K35)/O35 -> 0
A36: Total Machinery Expenses | P36: =SUM(P25:P35) -> 223.1625 | Q36: =SUM(Q25:Q35) -> 176.8485
A37: 1Salvage Value is assumed percentage of Cost
A38: 2Average Value = (Cost + Salvage Value + 1-year Depreciation) ÷ 2
A39: 3Depreciation = (Cost - Salvage Value ÷ Useful Life)
A40: 4Interest = (Average Value × Interest Rate)
A41: 5Insurance = (Average Value × 0.5%)
A42: 6Property Tax = (Average Value × 0.5%), Fencing and Watering = 0%
A43: 7Repairs = (Cost × 1%)
A45: To assist in calculating fencing costs visit the following web address:
A46: https://arec.tennessee.edu/extension/
A48: Users may type over the default values in the orange boxes with any valid number that reflects their specific circumstance.

Sheet Breeding Stock
A2: Breeding Stock
B3: Percent of | C3: Price | D3: Salvage Value | E3: Useful Life | F3: Annual | G3: Interest
A4: Item | B4: Total | C4: $/head | D4: $/head | E4: Years | F4: Depreciation | G4: Rate | H4: Interest
A5: Cows Purchased (percent of current cow herd) | B5: 0 | C5: 2700 | D5: =B11*C11 -> 1200 | E5: 8 | F5: =((C5-D5)/E5)*B5 -> 0 | G5: 0.06 | H5: =B5*((C5+D5+F5)/2)*G5 -> 0
A6: Heifers Purchased (not bred) | B6: =IF('Herd Data'!C11>0,'Herd Data'!C11/'Herd Data'!C11,0) -> 0 | C6: 3000 | D6: =B12*C12 -> 1200 | E6: 10 | F6: =((C6-D6)/E6)*B6 -> 0 | G6: 0.06 | H6: =B6*((C6+D6+F6)/2)*G6 -> 0
A7: Bulls Purchased | B7: 1 | C7: 4500 | D7: 2400 | E7: 4 | F7: 525 | G7: 0.06 | H7: 222.75
B9: Sale Weight | C9: Sale Price
A10: Item | B10: lb | C10: $/lb
A11: Culled Cow | B11: =Budget!D4 -> 1200 | C11: =Budget!E4 -> 1
A12: Culled Purchased Replacement | B12: 1200 | C12: 1
A13: Culled Bulls | B13: 2000 | C13: 1.2
A18: Users may type over the default values in the orange boxes with any valid number that reflects their specific circumstance.

Sheet Other Expenses
A2: Other Expenses
C3: Price | D3: Amount
A4: Item | B4: Unit | C4: $/unit | D4: $/head
A5: Identification Tags | B5: Head | C5: 1.5 | D5: =C5 -> 1.5
A6: Freeze Branding | B6: Head | D6: 0
A7: DNA/Genetic Testing | B7: Head | D7: 0
A8: Other | B8: Head | D8: 0
A9: Other | B9: Head | D9: 0
A10: Other | B10: Head | D10: 0
A11: Total Other Expenses | D11: =SUM(D5:D10) -> 1.5
A13: Users may type over the default values in the orange boxes with any valid number that reflects their specific circumstance.
